fUST/lending_fUST_20251218
["ID","MTS","AMOUNT","RATE_DAILY","PERIOD"]
[398979543,1766046481588,-794.57,0.00053698,120]
[398979545,1766046481616,-500.0,0.00053698,120]
[398979546,1766046481647,-500.0,0.00053698,120]
[398979548,1766046481688,-185.03,0.00053698,120]
[398979549,1766046481721,-171.8754099,0.00053698,120]
[398979551,1766046481755,-352.94,0.00053698,120]
[398979552,1766046481783,-500.0,0.00053698,120]
[398979554,1766046481809,-752.26,0.00053698,120]
[398979555,1766046481837,-796.96,0.00053698,120]
[398979557,1766046481864,-500.0,0.00053698,120]
[398979558,1766046481892,-502.56,0.00053698,120]
[398979560,1766046481921,-500.0,0.00053698,120]
[398979561,1766046481952,-500.2,0.00053698,120]
[398979563,1766046481980,-500.0,0.00053698,120]
[398979564,1766046482007,-3489.36,0.00053698,120]
[398979565,1766046482035,-500.0,0.00053698,120]
[398979567,1766046482064,-479.71,0.00053698,120]
[398979568,1766046482093,-500.0,0.00053698,120]
[398979570,1766046482121,-1201.01,0.00053698,120]
[398979571,1766046482168,-1278.61,0.00053698,120]
[398979572,1766046482222,-500.0,0.00053698,120]
[398979573,1766046482260,-1644.88719657,0.00053835,28]
[398979574,1766046482287,-500.0,0.00053972,120]
[398979575,1766046482313,-1106.62,0.00053972,120]
[398979576,1766046482338,-887.68,0.00053972,120]
[398979578,1766046482365,-500.0,0.00053972,120]
[398979579,1766046482392,-529.98,0.00053972,120]
[398979580,1766046482419,-500.0,0.00053972,120]
[398979582,1766046482446,-500.0,0.00053972,120]
[398979583,1766046482474,-595.45,0.00053972,120]
[398979585,1766046482502,-500.0,0.00053972,120]
[398979586,1766046482529,-500.0,0.00053972,120]
[398979588,1766046482556,-500.0,0.00053972,120]
[398979589,1766046482583,-500.0,0.00053972,120]
[398979591,1766046482611,-500.0,0.00053972,60]
[398979592,1766046482638,-500.85,0.00053972,120]
[398979594,1766046482666,-500.0,0.00053972,120]
[398979595,1766046482695,-2793.51,0.00053972,120]
[398979597,1766046482721,-500.0,0.00053972,120]
[398979600,1766046482860,-2916.62,0.00053972,120]
[398979602,1766046482891,-2205.8,0.00053972,120]
[398979603,1766046482922,-500.0,0.00053972,120]
[398979605,1766046482950,-500.0,0.00053972,120]
[398979606,1766046482978,-500.0,0.00053972,120]
[398979607,1766046483007,-500.0,0.00053972,120]
[398979609,1766046483036,-608.15,0.00053972,120]
[398979610,1766046483065,-508.14,0.00053972,120]
[398979612,1766046483095,-500.0,0.00053972,120]
[398979613,1766046483124,-934.41,0.00053972,120]
[398979615,1766046483154,-641.94,0.00053972,120]
[398979616,1766046483185,-500.0,0.00053972,120]
[398979618,1766046483223,-500.0,0.00053972,120]
[398979619,1766046483252,-500.0,0.00053972,120]
[398979621,1766046483281,-500.0,0.00053972,120]
[398979622,1766046483312,-500.0,0.00053972,120]
[398979624,1766046483339,-3729.93,0.00053972,120]
[398979625,1766046483367,-563.47,0.00053972,120]
[398979627,1766046483395,-500.0,0.00053972,120]
[398979628,1766046483425,-640.43,0.00053972,120]
[398979630,1766046483454,-500.0,0.00053972,120]
[398979631,1766046483483,-610.13,0.00053972,120]
[398979632,1766046483511,-1603.66,0.00053972,120]
[398979634,1766046483541,-500.0,0.00053972,120]
[398979635,1766046483571,-5648.93,0.00053972,120]
[398979637,1766046483601,-2273.92,0.00053972,120]
[398979638,1766046483629,-283.67,0.00053972,120]
[398979640,1766046483658,-1093.23,0.00053972,120]
[398979641,1766046483688,-866.7,0.00053972,120]
[398979643,1766046483715,-644.12,0.00053972,120]
[398979644,1766046483744,-500.0,0.00053972,120]
[398979646,1766046483773,-500.0,0.00053972,120]
[398979647,1766046483801,-500.0,0.00053972,120]
[398979649,1766046483828,-2758.99,0.00053972,120]
[398979650,1766046483856,-955.33,0.00053972,120]
[398979652,1766046483884,-500.0,0.00053972,120]
[398979653,1766046483911,-500.0,0.00053972,120]
[398979655,1766046483938,-789.53,0.00053972,120]
[398979656,1766046483966,-500.0,0.00053972,120]
[398979658,1766046483994,-1078.75,0.00053972,120]
[398979659,1766046484022,-500.0,0.00053972,120]
[398979661,1766046484049,-500.0,0.00053972,120]
[398979662,1766046484077,-510.83,0.00053972,120]
[398979663,1766046484104,-794.57,0.00053972,120]
[398979665,1766046484132,-500.0,0.00053972,120]
[398979666,1766046484159,-500.0,0.00053972,120]
[398979668,1766046484192,-500.0,0.00053972,120]
[398979669,1766046484222,-752.26,0.00053972,120]
[398979671,1766046484252,-796.96,0.00053972,120]
[398979672,1766046484280,-500.0,0.00053972,120]
[398979674,1766046484309,-502.56,0.00053972,120]
[398979675,1766046484338,-500.0,0.00053972,120]
[398979677,1766046484365,-500.2,0.00053972,120]
[398979678,1766046484391,-500.0,0.00053972,120]
[398979680,1766046484420,-3489.36,0.00053972,120]
[398979681,1766046484449,-500.0,0.00053972,120]
[398979683,1766046484476,-500.0,0.00053972,120]
[398979684,1766046484505,-1201.01,0.00053972,120]
[398979686,1766046484535,-1278.61,0.00053972,120]
[398979687,1766046484566,-500.0,0.00053972,120]
[398979689,1766046484595,-5019.9406906,0.00054,120]
[398979690,1766046484624,-1000.0,0.00054,120]
[398979692,1766046484652,-5000.0,0.000542,120]
[398979693,1766046484679,-5000.0,0.000542,120]
[398979695,1766046484706,-10000.0,0.000542,120]
[398979696,1766046484734,-500.0,0.00054246,120]
[398979698,1766046484761,-1106.62,0.00054246,120]
[398979699,1766046484787,-887.68,0.00054246,120]
[398979701,1766046484812,-500.0,0.00054246,120]
[398979702,1766046484838,-529.98,0.00054246,120]
[398979704,1766046484864,-500.0,0.00054246,120]
[398979705,1766046484890,-500.0,0.00054246,120]
[398979706,1766046484916,-500.0,0.00054246,120]
[398979708,1766046484942,-500.0,0.00054246,120]
[398979709,1766046484970,-305.33,0.00054246,120]
[398979711,1766046484997,-500.0,0.00054246,120]
[398979712,1766046485024,-500.0,0.00054246,60]
[398979714,1766046485052,-500.85,0.00054246,120]
[398979715,1766046485078,-228.82,0.00054246,120]
[398979717,1766046485105,-2793.51,0.00054246,120]
[398979718,1766046485133,-500.0,0.00054246,120]
[398979720,1766046485159,-2916.62,0.00054246,120]
[398979721,1766046485190,-2205.8,0.00054246,120]
[398979723,1766046485216,-500.0,0.00054246,120]
[398979724,1766046485244,-500.0,0.00054246,120]
[398979726,1766046485273,-500.0,0.00054246,120]
[398979727,1766046485302,-500.0,0.00054246,120]
[398979729,1766046485329,-608.15,0.00054246,120]
[398979730,1766046485357,-508.14,0.00054246,120]
[398979732,1766046485385,-500.0,0.00054246,120]
[398979733,1766046485413,-934.41,0.00054246,120]
[398979734,1766046485441,-641.94,0.00054246,120]
[398979736,1766046485471,-500.0,0.00054246,120]
[398979737,1766046485498,-500.0,0.00054246,120]
[398979739,1766046485526,-500.0,0.00054246,120]
[398979742,1766046485665,-500.0,0.00054246,120]
[398979744,1766046485695,-500.0,0.00054246,120]
[398979745,1766046485723,-3729.93,0.00054246,120]
[398979747,1766046485749,-563.47,0.00054246,120]
[398979748,1766046485777,-500.0,0.00054246,120]
[398979750,1766046485805,-640.43,0.00054246,120]
[398979751,1766046485836,-500.0,0.00054246,120]
[398979753,1766046485864,-610.13,0.00054246,120]
[398979754,1766046485892,-1603.66,0.00054246,120]
[398979756,1766046485921,-515.59,0.00054246,120]
[398979757,1766046485952,-5648.93,0.00054246,120]
[398979759,1766046485980,-2273.92,0.00054246,120]
[398979760,1766046486009,-1093.23,0.00054246,120]
[398979762,1766046486036,-866.7,0.00054246,120]
[398979763,1766046486063,-644.12,0.00054246,120]
[398979764,1766046486091,-500.0,0.00054246,120]
[398979766,1766046486117,-500.0,0.00054246,120]
[398979767,1766046486143,-500.0,0.00054246,120]
[398979769,1766046486170,-2758.99,0.00054246,120]
[398979770,1766046486197,-955.33,0.00054246,120]
[398979772,1766046486224,-500.0,0.00054246,120]
[398979773,1766046486252,-500.0,0.00054246,120]
[398979775,1766046486280,-789.53,0.00054246,120]
[398979776,1766046486307,-500.0,0.00054246,120]
[398979778,1766046486333,-1078.75,0.00054246,120]
[398979779,1766046486360,-500.0,0.00054246,120]
[398979781,1766046486386,-500.0,0.00054246,120]
[398979782,1766046486415,-510.83,0.00054246,120]
[398979784,1766046486443,-794.57,0.00054246,120]
[398979785,1766046486472,-374.71499401,0.00054246,120]
[398979787,1766046486500,-500.0,0.00054246,120]
[398979788,1766046486528,-500.0,0.00054246,120]
[398979790,1766046486556,-752.26,0.00054246,120]
[398979791,1766046486585,-796.96,0.00054246,120]
[398979793,1766046486612,-500.0,0.00054246,120]
[398979794,1766046486641,-502.56,0.00054246,120]
[398979796,1766046486669,-500.0,0.00054246,120]
[398979797,1766046486698,-500.2,0.00054246,120]
[398979799,1766046486724,-309.17,0.00054246,120]
[398979800,1766046486752,-3489.36,0.00054246,120]
[398979802,1766046486780,-500.0,0.00054246,120]
[398979803,1766046486806,-500.0,0.00054246,120]
[398979804,1766046486833,-1201.01,0.00054246,120]
[398979806,1766046486860,-1278.61,0.00054246,120]
[398979807,1766046486887,-326.97,0.00054246,120]
[398979809,1766046486913,-500.0,0.0005452,120]
[398979810,1766046486940,-1106.62,0.0005452,120]
[398979812,1766046486966,-887.68,0.0005452,120]
[398979813,1766046486992,-500.0,0.0005452,120]
[398979815,1766046487020,-529.98,0.0005452,120]
[398979816,1766046487047,-500.0,0.0005452,120]
[398979818,1766046487073,-500.0,0.0005452,120]
[398979819,1766046487099,-500.0,0.0005452,120]
[398979821,1766046487124,-500.0,0.0005452,120]
[398979822,1766046487151,-500.0,0.0005452,120]
[398979824,1766046487180,-500.0,0.0005452,60]
[398979825,1766046487210,-500.85,0.0005452,120]
[398979827,1766046487237,-2793.51,0.0005452,120]
[398979828,1766046487266,-500.0,0.0005452,120]
[398979830,1766046487292,-2916.62,0.0005452,120]
[398979831,1766046487318,-2205.8,0.0005452,120]
[398979832,1766046487344,-500.0,0.0005452,120]
[398979834,1766046487371,-500.0,0.0005452,120]
[398979835,1766046487398,-500.0,0.0005452,120]
[398979837,1766046487427,-500.0,0.0005452,120]
[398979838,1766046487455,-608.15,0.0005452,120]
[398979840,1766046487483,-508.14,0.0005452,120]
[398979841,1766046487511,-500.0,0.0005452,120]
[398979843,1766046487541,-934.41,0.0005452,120]
[398979844,1766046487568,-500.0,0.0005452,120]
[398979846,1766046487596,-641.94,0.0005452,120]
[398979847,1766046487625,-500.0,0.0005452,120]
[398979849,1766046487652,-542.68220297,0.0005452,120]
[398979850,1766046487682,-500.0,0.0005452,120]
[398979852,1766046487710,-500.0,0.0005452,120]
[398979853,1766046487738,-3729.93,0.0005452,120]
[398979855,1766046487765,-563.47,0.0005452,120]
[398979856,1766046487793,-500.0,0.0005452,120]
[398979858,1766046487823,-640.43,0.0005452,120]
[398979859,1766046487856,-180.19,0.0005452,120]
[398979860,1766046487885,-610.13,0.0005452,120]
[398979861,1766046487912,-1603.66,0.0005452,120]
[398979862,1766046487942,-5648.93,0.0005452,120]
[398979863,1766046487971,-2273.92,0.0005452,120]
[398979864,1766046488002,-1093.23,0.0005452,120]
[398979866,1766046488036,-866.7,0.0005452,120]
[398979867,1766046488071,-644.12,0.0005452,120]
[398979869,1766046488103,-500.0,0.0005452,120]
[398979870,1766046488135,-500.0,0.0005452,120]
[398979872,1766046488166,-500.0,0.0005452,120]
[398979873,1766046488201,-2758.99,0.0005452,120]
[398979875,1766046488235,-955.33,0.0005452,120]
[398979876,1766046488267,-500.0,0.0005452,120]
[398979878,1766046488299,-500.0,0.0005452,120]
[398979879,1766046488330,-789.53,0.0005452,120]
[398979882,1766046488468,-500.0,0.0005452,120]
[398979884,1766046488503,-1078.75,0.0005452,120]
[398979885,1766046488539,-500.0,0.0005452,120]
[398979887,1766046488572,-187.81134644,0.0005452,120]
[398979888,1766046488606,-510.83,0.0005452,120]
[398979890,1766046488639,-794.57,0.0005452,120]
[398979891,1766046488673,-567.87,0.0005452,120]
[398979893,1766046488710,-500.0,0.0005452,120]
[398979894,1766046488743,-752.26,0.0005452,120]
[398979896,1766046488774,-796.96,0.0005452,120]
[398979897,1766046488806,-500.0,0.0005452,120]
[398979899,1766046488838,-502.56,0.0005452,120]
[398979900,1766046488869,-635.46,0.0005452,120]
[398979902,1766046488899,-500.2,0.0005452,120]
[398979903,1766046488933,-3489.36,0.0005452,120]
[398979905,1766046488963,-211.22,0.0005452,120]
[398979906,1766046488992,-500.0,0.0005452,120]
[398979908,1766046489022,-1201.01,0.0005452,120]
[398979909,1766046489051,-1278.61,0.0005452,120]
[398979911,1766046489080,-500.0,0.00054794,120]
[398979912,1766046489107,-1106.62,0.00054794,120]
[398979914,1766046489133,-887.68,0.00054794,120]
[398979915,1766046489161,-500.0,0.00054794,120]
[398979917,1766046489188,-529.98,0.00054794,120]
[398979918,1766046489217,-500.0,0.00054794,120]
[398979919,1766046489245,-500.0,0.00054794,120]
[398979921,1766046489271,-500.0,0.00054794,120]
[398979922,1766046489299,-500.0,0.00054794,120]
[398979924,1766046489326,-500.0,0.00054794,120]
[398979925,1766046489353,-500.0,0.00054794,60]
[398979927,1766046489380,-500.85,0.00054794,120]
[398979928,1766046489407,-2793.51,0.00054794,120]
[398979930,1766046489436,-500.0,0.00054794,120]
[398979931,1766046489464,-2916.62,0.00054794,120]
[398979933,1766046489492,-2205.8,0.00054794,120]
[398979934,1766046489521,-168.68,0.00054794,120]
[398979936,1766046489550,-500.0,0.00054794,120]
[398979937,1766046489579,-500.0,0.00054794,120]
[398979939,1766046489606,-500.0,0.00054794,120]
[398979940,1766046489634,-608.15,0.00054794,120]
[398979942,1766046489662,-508.14,0.00054794,120]
[398979943,1766046489691,-500.0,0.00054794,120]
[398979945,1766046489720,-934.41,0.00054794,120]
[398979946,1766046489747,-500.0,0.00054794,120]
[398979947,1766046489774,-641.94,0.00054794,120]
[398979949,1766046489800,-500.0,0.00054794,120]
[398979950,1766046489829,-500.0,0.00054794,120]
[398979952,1766046489857,-634.27,0.00054794,120]
[398979953,1766046489886,-3729.93,0.00054794,120]
[398979955,1766046489913,-563.47,0.00054794,120]
[398979956,1766046489941,-500.0,0.00054794,120]
[398979958,1766046489970,-640.43,0.00054794,120]
[398979959,1766046489999,-610.13,0.00054794,120]
[398979961,1766046490027,-1603.66,0.00054794,120]
[398979962,1766046490056,-5648.93,0.00054794,120]
[398979964,1766046490086,-2273.92,0.00054794,120]
[398979965,1766046490115,-1093.23,0.00054794,120]
[398979967,1766046490145,-866.7,0.00054794,120]
[398979968,1766046490173,-644.12,0.00054794,120]
[398979970,1766046490202,-500.0,0.00054794,120]
[398979971,1766046490231,-500.0,0.00054794,120]
[398979973,1766046490259,-500.0,0.00054794,120]
[398979974,1766046490287,-2758.99,0.00054794,120]
[398979976,1766046490315,-955.33,0.00054794,120]
[398979977,1766046490343,-500.0,0.00054794,120]
[398979979,1766046490370,-500.0,0.00054794,120]
[398979980,1766046490400,-789.53,0.00054794,120]
[398979982,1766046490427,-218.29727211,0.00054794,120]
[398979983,1766046490458,-1078.75,0.00054794,120]
[398979985,1766046490487,-500.0,0.00054794,120]
[398979986,1766046490518,-510.83,0.00054794,120]
[398979988,1766046490546,-794.57,0.00054794,120]
[398979989,1766046490576,-542.88,0.00054794,120]
[398979991,1766046490605,-752.26,0.00054794,120]
[398979992,1766046490636,-796.96,0.00054794,120]
[398979994,1766046490665,-500.0,0.00054794,120]
[398979995,1766046490694,-502.56,0.00054794,120]
[398979997,1766046490722,-500.2,0.00054794,120]
[398979998,1766046490751,-3489.36,0.00054794,120]
[398979999,1766046490778,-222.15,0.00054794,120]
[398980001,1766046490805,-1201.01,0.00054794,120]
[398980002,1766046490833,-1278.61,0.00054794,120]
[398980006,1766046490983,442.99299041,0.00046794,120]
[398980008,1766046491040,383.49168372,0.00046794,120]
[398980013,1766046491316,5000.0,0.00054795,10]
[398980016,1766046491449,1041.66666667,0.00052328,120]
[398980018,1766046491487,1041.66666667,0.00052602,120]
[398980020,1766046491582,1041.66666667,0.000542,120]
[398981261,1766046574581,-68001.9717989,0.0003,30]
[398981262,1766046574607,-1041.66666667,0.0003,30]
[398981263,1766046574635,-1041.66666667,0.000309,30]
[398981265,1766046574664,-320.54905904,0.00039165,15]
[398981266,1766046574694,-215.74,0.000392,30]
[398981268,1766046574722,-600.0,0.00039948,60]
[398981269,1766046574752,-720.0,0.00043943,60]
[398981271,1766046574784,-491.0,0.00048337,120]
[398981272,1766046574813,-592.17,0.00052054,120]
[398981274,1766046574843,-500.0,0.00052054,120]
[398981275,1766046574872,-500.0,0.00052054,120]
[398981277,1766046574902,-500.0,0.00052054,120]
[398981278,1766046574931,-500.0,0.00052054,120]
[398981279,1766046574959,-500.0,0.00052054,120]
[398981281,1766046574988,-500.0,0.00052054,120]
[398981282,1766046575016,-1231.71,0.00052054,120]
[398981284,1766046575043,-1494.45,0.00052054,120]
[398981285,1766046575069,-574.76,0.00052054,60]
[398981287,1766046575097,-3059.83,0.00052054,120]
[398981288,1766046575124,-500.0,0.00052054,120]
[398981289,1766046575151,-500.0,0.00052054,120]
[398981290,1766046575177,-150.99,0.00052054,120]
[398981291,1766046575203,-500.0,0.00052054,120]
[398981292,1766046575231,-592.17,0.00052328,120]
[398981293,1766046575258,-500.0,0.00052328,120]
[398981294,1766046575285,-500.0,0.00052328,120]
[398981295,1766046575313,-500.0,0.00052328,120]
[398981296,1766046575340,-500.0,0.00052328,120]
[398981297,1766046575368,-604.03274668,0.00052328,120]
[398981298,1766046575397,-500.0,0.00052328,120]
[398981299,1766046575426,-1231.71,0.00052328,120]
[398981300,1766046575453,-1494.45,0.00052328,120]
[398981301,1766046575483,-3059.83,0.00052328,120]
[398981302,1766046575512,-500.0,0.00052328,120]
[398981303,1766046575654,-1041.66666667,0.00052328,120]
[398981304,1766046575685,-500.0,0.00052328,120]
[398981306,1766046575712,-500.0,0.00052328,120]
[398981307,1766046575741,-592.17,0.00052602,120]
[398981309,1766046575770,-500.0,0.00052602,120]
[398981310,1766046575797,-500.0,0.00052602,120]
[398981312,1766046575823,-500.0,0.00052602,120]
[398981313,1766046575849,-500.0,0.00052602,120]
[398981314,1766046575875,-500.0,0.00052602,120]
[398981316,1766046575902,-1231.71,0.00052602,120]
[398981317,1766046575928,-1494.45,0.00052602,120]
[398981319,1766046575956,-3059.83,0.00052602,120]
[398981320,1766046575983,-260.49,0.00052602,120]
[398981322,1766046576009,-500.0,0.00052602,120]
[398981323,1766046576036,-500.0,0.00052602,120]
[398981325,1766046576063,-592.17,0.00052876,120]
[398981326,1766046576091,-500.0,0.00052876,120]
[398981328,1766046576120,-500.0,0.00052876,120]
[398981329,1766046576150,-500.0,0.00052876,120]
[398981330,1766046576177,-500.0,0.00052876,120]
[398981332,1766046576206,-500.0,0.00052876,120]
[398981333,1766046576237,-1231.71,0.00052876,120]
[398981335,1766046576264,-1494.45,0.00052876,120]
[398981336,1766046576292,-3059.83,0.00052876,120]
[398981338,1766046576320,-500.0,0.00052876,120]
[398981339,1766046576350,-500.0,0.00052876,120]
[398981341,1766046576378,-592.17,0.0005315,120]
[398981342,1766046576405,-500.0,0.0005315,120]
[398981344,1766046576432,-500.0,0.0005315,120]
[398981345,1766046576462,-500.0,0.0005315,120]
[398981347,1766046576490,-500.0,0.0005315,120]
[398981348,1766046576518,-500.0,0.0005315,120]
[398981349,1766046576546,-1231.71,0.0005315,120]
[398981351,1766046576574,-1494.45,0.0005315,120]
[398981352,1766046576602,-3059.83,0.0005315,120]
[398981354,1766046576630,-500.0,0.0005315,120]
[398981355,1766046576658,-500.0,0.0005315,120]
[398981357,1766046576686,-592.17,0.00053424,120]
[398981359,1766046576714,-500.0,0.00053424,120]
[398981360,1766046576746,-500.0,0.00053424,120]
[398981362,1766046576778,-500.0,0.00053424,120]
[398981364,1766046576807,-500.0,0.00053424,120]
[398981366,1766046576836,-500.0,0.00053424,120]
[398981367,1766046576865,-1231.71,0.00053424,120]
[398981369,1766046576893,-1494.45,0.00053424,120]
[398981371,1766046576928,-3059.83,0.00053424,120]
[398981373,1766046576962,-500.0,0.00053424,120]
[398981375,1766046576990,-500.0,0.00053424,120]
[398981376,1766046577020,-592.17,0.00053698,120]
[398981378,1766046577049,-500.0,0.00053698,120]
[398981380,1766046577079,-500.0,0.00053698,120]
[398981382,1766046577108,-500.0,0.00053698,120]
[398981383,1766046577135,-500.0,0.00053698,120]
[398981385,1766046577163,-600.93,0.00053698,120]
[398981387,1766046577193,-1231.71,0.00053698,120]
[398981388,1766046577220,-1494.45,0.00053698,120]
[398981390,1766046577249,-3059.83,0.00053698,120]
[398981392,1766046577281,-500.0,0.00053698,120]
[398981394,1766046577308,-500.0,0.00053698,120]
[398981396,1766046577337,-592.17,0.00053972,120]
[398981397,1766046577367,-500.0,0.00053972,120]
[398981399,1766046577396,-500.0,0.00053972,120]
[398981401,1766046577425,-500.0,0.00053972,120]
[398981402,1766046577456,-500.0,0.00053972,120]
[398981404,1766046577490,-1231.71,0.00053972,120]
[398981406,1766046577524,-1494.45,0.00053972,120]
[398981408,1766046577556,-3059.83,0.00053972,120]
[398981409,1766046577588,-500.0,0.00053972,120]
[398981411,1766046577619,-500.0,0.00053972,120]
[398981413,1766046577648,-592.17,0.00054246,120]
[398981415,1766046577678,-500.0,0.00054246,120]
[398981416,1766046577708,-500.0,0.00054246,120]
[398981418,1766046577741,-500.0,0.00054246,120]
[398981420,1766046577771,-500.0,0.00054246,120]
[398981421,1766046577799,-1231.71,0.00054246,120]
[398981423,1766046577829,-1494.45,0.00054246,120]
[398981425,1766046577856,-3059.83,0.00054246,120]
[398981426,1766046577884,-500.0,0.00054246,120]
[398981428,1766046577912,-500.0,0.00054246,120]
[398981430,1766046577942,-592.17,0.0005452,120]
[398981431,1766046577971,-500.0,0.0005452,120]
[398981433,1766046577999,-500.0,0.0005452,120]
[398981434,1766046578030,-500.0,0.0005452,120]
[398981436,1766046578059,-500.0,0.0005452,120]
[398981437,1766046578089,-1231.71,0.0005452,120]
[398981439,1766046578119,-1494.45,0.0005452,120]
[398981441,1766046578151,-3059.83,0.0005452,120]
[398981446,1766046578326,-500.0,0.0005452,120]
[398981448,1766046578356,-500.0,0.0005452,120]
[398981449,1766046578386,-168.0,0.000547,10]
[398981451,1766046578416,-592.17,0.00054794,120]
[398981453,1766046578446,-500.0,0.00054794,120]
[398981455,1766046578476,-156.96,0.00054794,120]
[398981456,1766046578507,-500.0,0.00054794,120]
[398981458,1766046578538,-588.24,0.00054794,120]
[398981460,1766046578570,-1231.71,0.00054794,120]
[398981462,1766046578599,-1494.45,0.00054794,120]
[398981463,1766046578628,-3059.83,0.00054794,120]
[398981465,1766046578659,-878.0,0.00054794,10]
[398981467,1766046578687,-878.0,0.00054794,10]
[398981468,1766046578717,-878.0,0.00054794,10]
[398981470,1766046578748,-878.0,0.00054794,10]
[398981472,1766046578777,-878.0,0.00054794,10]
[398981474,1766046578806,-878.0,0.00054794,10]
[398981475,1766046578836,-500.0,0.00054794,120]
[398981477,1766046578867,-878.0,0.00054794,10]
[398981479,1766046578895,-250.0,0.00054794,10]
[398981481,1766046578925,-878.0,0.00054794,10]
[398981482,1766046578953,-250.0,0.00054794,10]
[398981484,1766046578982,-878.0,0.00054794,10]
[398981486,1766046579026,-250.0,0.00054794,10]
[398981488,1766046579062,-878.0,0.00054794,10]
[398981490,1766046579093,-250.0,0.00054794,10]
[398981492,1766046579124,-743.295477,0.00054794,10]
[398981493,1766046579153,-250.0,0.00054794,10]
[398981495,1766046579184,-250.0,0.00054794,10]
[398981497,1766046579214,-250.0,0.00054794,10]
[398981498,1766046579243,-250.0,0.00054794,10]
[398981500,1766046579274,-250.0,0.00054794,10]
[398981502,1766046579303,-250.0,0.00054794,10]
[398981504,1766046579332,-250.0,0.00054794,10]
[398981505,1766046579364,-500.0,0.00054794,120]
[398981507,1766046579393,-1041.66666667,0.00054794,10]
[398981509,1766046579426,-5000.0,0.00054795,10]
[398981512,1766046579519,1041.66666667,0.0005315,120]
[398981515,1766046579612,500.0,0.00052054,120]
[398981517,1766046579676,500.0,0.00052328,120]
[398981519,1766046579714,500.0,0.00052602,120]
[398981521,1766046579754,574.63,0.00052876,120]
[398981987,1766046602224,-517.47,0.00052054,120]
[398981988,1766046602254,-500.0,0.00052054,120]
[398981990,1766046602283,-1513.16,0.00052054,120]
[398981992,1766046602312,-500.0,0.00052054,120]
[398981997,1766046602468,-517.47,0.00052328,120]
[398981999,1766046602498,-500.0,0.00052328,120]
[398982000,1766046602527,-1513.16,0.00052328,120]
[398982002,1766046602557,-500.0,0.00052328,120]
[398982003,1766046602587,-517.47,0.00052602,120]
[398982005,1766046602617,-500.0,0.00052602,120]
[398982007,1766046602646,-1513.16,0.00052602,120]
[398982008,1766046602675,-500.0,0.00052602,120]
[398982010,1766046602702,-517.47,0.00052876,120]
[398982012,1766046602734,-500.0,0.00052876,120]
[398982014,1766046602763,-1513.16,0.00052876,120]
[398982015,1766046602791,-500.0,0.00052876,120]
[398982017,1766046602819,-517.47,0.0005315,120]
[398982019,1766046602848,-500.0,0.0005315,120]
[398982021,1766046602877,-1513.16,0.0005315,120]
[398982022,1766046602907,-500.0,0.0005315,120]